[Event "Titled Tuesday Blitz July 4 Late 2023"]
[White "Bruedigam, Martin"]
[Black "Urbina Perez, Juan Antonio"]
[WhiteFideId "24608033"]
[BlackFideId "2217368"]
[WhiteElo "2557"]
[BlackElo "2422"]
[Result "1/2-1/2"]
[Round "10"]
[TimeControl "180+2"]
[Date "2023.07.04"]
[WhiteClock "0:00:10"]
[BlackClock "0:00:12"]
[Board "53"]

1. c4 {[%clk 0:02:53]}  c6 {[%clk 0:02:57]} 2. d4 {[%clk 0:02:50]}  d5 {[%clk 0:02:58]} 3. Nf3 {[%clk 0:02:50]}  Nf6 {[%clk 0:02:57]} 4. e3 {[%clk 0:02:48]}  Bf5 {[%clk 0:02:55]} 5. Qb3 {[%clk 0:02:45]}  Qb6 {[%clk 0:02:46]} 6. c5 {[%clk 0:02:45]}  Qxb3 {[%clk 0:02:46]} 7. axb3 {[%clk 0:02:46]}  Nbd7 {[%clk 0:02:34]} 8. b4 {[%clk 0:02:47]}  Bxb1 {[%clk 0:02:32]} 9. Rxb1 {[%clk 0:02:46]}  a6 {[%clk 0:02:32]} 10. Nd2 {[%clk 0:02:41]}  g6 {[%clk 0:02:22]} 11. Ra1 {[%clk 0:02:38]}  Rb8 {[%clk 0:02:20]} 12. Nb3 {[%clk 0:02:36]}  Bh6 {[%clk 0:02:15]} 13. Bd2 {[%clk 0:02:33]}  e5 {[%clk 0:02:12]} 14. Bc3 {[%clk 0:02:31]}  Ne4 {[%clk 0:02:06]} 15. Bd3 {[%clk 0:02:26]}  Nxc3 {[%clk 0:02:04]} 16. bxc3 {[%clk 0:02:27]}  O-O {[%clk 0:02:01]} 17. Na5 {[%clk 0:02:26]}  exd4 {[%clk 0:01:57]} 18. exd4 {[%clk 0:02:13]}  Rfe8+ {[%clk 0:01:56]} 19. Kd1 {[%clk 0:02:12]}  Bg5 {[%clk 0:01:54]} 20. Re1 {[%clk 0:02:08]}  Rxe1+ {[%clk 0:01:51]} 21. Kxe1 {[%clk 0:02:09]}  Bd8 {[%clk 0:01:51]} 22. Nxc6 {[%clk 0:02:00]}  bxc6 {[%clk 0:01:45]} 23. Rxa6 {[%clk 0:02:00]}  Nf8 {[%clk 0:01:38]} 24. Rxc6 {[%clk 0:01:57]}  Rb7 {[%clk 0:01:28]} 25. Kd1 {[%clk 0:01:53]}  Be7 {[%clk 0:01:27]} 26. Ra6 {[%clk 0:01:50]}  Ne6 {[%clk 0:01:25]} 27. c6 {[%clk 0:01:47]}  Rb8 {[%clk 0:01:22]} 28. b5 {[%clk 0:01:43]}  Bd8 {[%clk 0:01:18]} 29. Kc2 {[%clk 0:01:34]}  Kf8 {[%clk 0:01:16]} 30. Kb3 {[%clk 0:01:34]}  Rb6 {[%clk 0:01:15]} 31. Ra7 {[%clk 0:01:30]}  Bc7 {[%clk 0:01:07]} 32. g3 {[%clk 0:01:26]}  Ke7 {[%clk 0:01:06]} 33. Ka4 {[%clk 0:01:22]}  Kd6 {[%clk 0:01:04]} 34. Bf1 {[%clk 0:01:18]}  f5 {[%clk 0:01:03]} 35. Kb4 {[%clk 0:01:07]}  Ng5 {[%clk 0:00:59]} 36. Bg2 {[%clk 0:01:05]}  Nf7 {[%clk 0:00:54]} 37. c4 {[%clk 0:01:01]}  dxc4 {[%clk 0:00:53]} 38. Kxc4 {[%clk 0:01:00]}  Ng5 {[%clk 0:00:53]} 39. Bd5 {[%clk 0:00:54]}  Rb8 {[%clk 0:00:45]} 40. Ra1 {[%clk 0:00:48]}  Re8 {[%clk 0:00:39]} 41. f4 {[%clk 0:00:46]}  Ne6 {[%clk 0:00:35]} 42. Ra6 {[%clk 0:00:37]}  Rb8 {[%clk 0:00:29]} 43. Bxe6 {[%clk 0:00:29]}  Kxe6 {[%clk 0:00:29]} 44. Ra1 {[%clk 0:00:19]}  Kd6 {[%clk 0:00:14]} 45. Rb1 {[%clk 0:00:12]}  Bb6 {[%clk 0:00:13]} 46. Ra1 {[%clk 0:00:10]}  Bc7 {[%clk 0:00:12]} 47. Ra7 {[%clk 0:00:10]}  Rb6 {[%clk 0:00:11]} 48. d5 {[%clk 0:00:09]}  Rb8 {[%clk 0:00:11]} 49. Rb7 {[%clk 0:00:04]}  Rxb7 {[%clk 0:00:10]} 50. cxb7 {[%clk 0:00:04]}  Bb8 {[%clk 0:00:09]} 51. b6 {[%clk 0:00:05]}  Kd7 {[%clk 0:00:08]} 52. Kc5 {[%clk 0:00:04]}  Bd6+ {[%clk 0:00:08]} 53. Kb5 {[%clk 0:00:05]}  Bb8 {[%clk 0:00:08]} 54. Kc5 {[%clk 0:00:04]}  Bd6+ {[%clk 0:00:08]} 55. Kd4 {[%clk 0:00:05]}  Bb8 {[%clk 0:00:07]} 56. h3 {[%clk 0:00:05]}  Kd6 {[%clk 0:00:07]} 57. g4 {[%clk 0:00:04]}  fxg4 {[%clk 0:00:07]} 58. hxg4 {[%clk 0:00:04]}  h5 {[%clk 0:00:07]} 59. gxh5 {[%clk 0:00:03]}  gxh5 {[%clk 0:00:08]} 60. Ke4 {[%clk 0:00:03]}  h4 {[%clk 0:00:06]} 61. f5 {[%clk 0:00:03]}  h3 {[%clk 0:00:06]} 62. Kf3 {[%clk 0:00:03]}  Kxd5 {[%clk 0:00:06]} 63. f6 {[%clk 0:00:03]}  Ke6 {[%clk 0:00:06]} 64. f7 {[%clk 0:00:03]}  Kxf7 {[%clk 0:00:06]} 65. Kf2 {[%clk 0:00:04]}  Bh2 {[%clk 0:00:02]} 66. b8=Q {[%clk 0:00:02]}  Bxb8 {[%clk 0:00:02]} 67. Kg1 {[%clk 0:00:02]}  h2+ {[%clk 0:00:03]} 68. Kh1 {[%clk 0:00:03]}  Ke7 {[%clk 0:00:04]} 69. Kg2 {[%clk 0:00:03]}  Ke6 {[%clk 0:00:05]} 70. Kh1 {[%clk 0:00:04]}  Kd5 {[%clk 0:00:06]} 71. Kg2 {[%clk 0:00:04]}  Kc6 {[%clk 0:00:06]} 72. Kh1 {[%clk 0:00:05]}  Kb7 {[%clk 0:00:07]} 73. Kg2 {[%clk 0:00:06]}  Kxb6 {[%clk 0:00:08]} 74. Kh1 {[%clk 0:00:07]}  Kc6 {[%clk 0:00:09]} 75. Kg2 {[%clk 0:00:08]}  Kb6 {[%clk 0:00:10]} 76. Kh1 {[%clk 0:00:09]}  Kc6 {[%clk 0:00:11]} 77. Kg2 {[%clk 0:00:10]}  Kb6 {[%clk 0:00:12]} 1/2-1/2


[Site "https://www.chess.com"]

[Event "Titled Tuesday Blitz July 4 Late 2023"]
[White "micke12a"]
[Black "Tikhonov, Viacheslav"]
[BlackFideId "44196407"]
[WhiteElo "2397"]
[BlackElo "2550"]
[Result "1-0"]
[Round "10"]
[TimeControl "180+2"]
[Date "2023.07.04"]
[WhiteClock "0:00:04"]
[BlackClock "0:01:20"]
[Board "54"]

1. d4 {[%clk 0:02:59]}  d5 {[%clk 0:02:58]} 2. Nf3 {[%clk 0:02:56]}  Nf6 {[%clk 0:02:57]} 3. c4 {[%clk 0:02:56]}  e6 {[%clk 0:02:56]} 4. Nc3 {[%clk 0:02:49]}  c5 {[%clk 0:02:56]} 5. cxd5 {[%clk 0:02:46]}  exd5 {[%clk 0:02:56]} 6. e3 {[%clk 0:02:45]}  Nc6 {[%clk 0:02:54]} 7. Bb5 {[%clk 0:02:43]}  Bd6 {[%clk 0:02:54]} 8. dxc5 {[%clk 0:02:42]}  Bxc5 {[%clk 0:02:55]} 9. O-O {[%clk 0:02:42]}  O-O {[%clk 0:02:55]} 10. b3 {[%clk 0:02:39]}  Bg4 {[%clk 0:02:52]} 11. Be2 {[%clk 0:02:33]}  Bd6 {[%clk 0:02:50]} 12. h3 {[%clk 0:02:33]}  Bh5 {[%clk 0:02:49]} 13. Bb2 {[%clk 0:02:33]}  a6 {[%clk 0:02:48]} 14. Rc1 {[%clk 0:02:23]}  Bc7 {[%clk 0:02:41]} 15. Na4 {[%clk 0:02:09]}  Qd6 {[%clk 0:02:37]} 16. g3 {[%clk 0:02:08]}  Ne4 {[%clk 0:02:34]} 17. Qe1 {[%clk 0:00:40]}  Rac8 {[%clk 0:02:01]} 18. Nd4 {[%clk 0:00:35]}  Bxe2 {[%clk 0:01:58]} 19. Qxe2 {[%clk 0:00:35]}  Nxg3 {[%clk 0:01:53]} 20. fxg3 {[%clk 0:00:20]}  Qxg3+ {[%clk 0:01:54]} 21. Qg2 {[%clk 0:00:20]}  Qxe3+ {[%clk 0:01:54]} 22. Qf2 {[%clk 0:00:20]}  Qxh3 {[%clk 0:01:51]} 23. Nf5 {[%clk 0:00:15]}  d4 {[%clk 0:01:45]} 24. Qg2 {[%clk 0:00:15]}  Qxg2+ {[%clk 0:01:38]} 25. Kxg2 {[%clk 0:00:15]}  Be5 {[%clk 0:01:32]} 26. Rxc6 {[%clk 0:00:12]}  bxc6 {[%clk 0:01:32]} 27. Ne7+ {[%clk 0:00:11]}  Kh8 {[%clk 0:01:33]} 28. Nxc8 {[%clk 0:00:11]}  Rxc8 {[%clk 0:01:34]} 29. Rxf7 {[%clk 0:00:11]}  h6 {[%clk 0:01:32]} 30. Nb6 {[%clk 0:00:10]}  Rd8 {[%clk 0:01:28]} 31. Nd7 {[%clk 0:00:09]}  d3 {[%clk 0:01:25]} 32. Nxe5 {[%clk 0:00:03]}  d2 {[%clk 0:01:25]} 33. Ng6+ {[%clk 0:00:03]}  Kh7 {[%clk 0:01:20]} 34. Rxg7# {[%clk 0:00:04]} 1-0


[Site "https://www.chess.com"]

[Event "Titled Tuesday Blitz July 4 Late 2023"]
[White "kripri"]
[Black "Guerra Tulcan, Lenin"]
[BlackFideId "3601382"]
[WhiteElo "2356"]
[BlackElo "2642"]
[Result "1-0"]
[Round "10"]
[TimeControl "180+2"]
[Date "2023.07.04"]
[WhiteClock "0:00:23"]
[BlackClock "0:00:52"]
[Board "60"]

1. d4 {[%clk 0:03:00]}  Nf6 {[%clk 0:02:59]} 2. Bf4 {[%clk 0:03:00]}  e6 {[%clk 0:02:59]} 3. e3 {[%clk 0:02:57]}  c5 {[%clk 0:03:00]} 4. c3 {[%clk 0:02:53]}  b6 {[%clk 0:02:59]} 5. Nf3 {[%clk 0:02:52]}  Bb7 {[%clk 0:03:00]} 6. Nbd2 {[%clk 0:02:51]}  Be7 {[%clk 0:03:00]} 7. h3 {[%clk 0:02:51]}  O-O {[%clk 0:03:00]} 8. Bd3 {[%clk 0:02:49]}  d5 {[%clk 0:03:00]} 9. Ne5 {[%clk 0:02:48]}  Nbd7 {[%clk 0:03:00]} 10. g4 {[%clk 0:02:31]}  Ne4 {[%clk 0:03:00]} 11. Nxe4 {[%clk 0:02:23]}  dxe4 {[%clk 0:02:59]} 12. Be2 {[%clk 0:02:22]}  f6 {[%clk 0:02:55]} 13. Nc4 {[%clk 0:02:21]}  cxd4 {[%clk 0:02:37]} 14. exd4 {[%clk 0:02:08]}  e3 {[%clk 0:02:25]} 15. O-O {[%clk 0:02:07]}  exf2+ {[%clk 0:02:22]} 16. Rxf2 {[%clk 0:02:06]}  Bd5 {[%clk 0:02:22]} 17. Ne3 {[%clk 0:02:06]}  Rc8 {[%clk 0:02:19]} 18. Nxd5 {[%clk 0:02:04]}  exd5 {[%clk 0:02:20]} 19. Qb3 {[%clk 0:01:54]}  Nb8 {[%clk 0:02:19]} 20. Bf3 {[%clk 0:01:51]}  Kh8 {[%clk 0:02:19]} 21. Qxd5 {[%clk 0:01:44]}  Qxd5 {[%clk 0:02:18]} 22. Bxd5 {[%clk 0:01:44]}  Rfd8 {[%clk 0:02:18]} 23. Bb7 {[%clk 0:01:34]}  Rc4 {[%clk 0:02:16]} 24. Re1 {[%clk 0:01:31]}  Bf8 {[%clk 0:02:13]} 25. Rfe2 {[%clk 0:01:30]}  g5 {[%clk 0:01:43]} 26. Re8 {[%clk 0:01:21]}  Rxe8 {[%clk 0:01:37]} 27. Rxe8 {[%clk 0:01:20]}  Nd7 {[%clk 0:01:37]} 28. Bd6 {[%clk 0:00:59]}  Kg7 {[%clk 0:01:37]} 29. Bxf8+ {[%clk 0:00:58]}  Nxf8 {[%clk 0:01:37]} 30. Re7+ {[%clk 0:00:57]}  Kh8 {[%clk 0:01:34]} 31. Bd5 {[%clk 0:00:55]}  Ra4 {[%clk 0:01:34]} 32. Rf7 {[%clk 0:00:51]}  Ng6 {[%clk 0:01:29]} 33. Rxf6 {[%clk 0:00:48]}  Nf4 {[%clk 0:01:28]} 34. Bb3 {[%clk 0:00:44]}  Ra5 {[%clk 0:01:25]} 35. Kh2 {[%clk 0:00:39]}  Kg7 {[%clk 0:01:22]} 36. Rf7+ {[%clk 0:00:36]}  Kg6 {[%clk 0:01:21]} 37. h4 {[%clk 0:00:36]}  Rb5 {[%clk 0:01:13]} 38. h5+ {[%clk 0:00:25]}  Kh6 {[%clk 0:01:12]} 39. Bc2 {[%clk 0:00:25]}  Ng6 {[%clk 0:01:12]} 40. hxg6 {[%clk 0:00:24]}  hxg6 {[%clk 0:01:12]} 41. Rf2 {[%clk 0:00:21]}  Rxb2 {[%clk 0:01:10]} 42. Kg3 {[%clk 0:00:21]}  Rxa2 {[%clk 0:01:10]} 43. Be4 {[%clk 0:00:19]}  Ra3 {[%clk 0:01:09]} 44. Rf3 {[%clk 0:00:19]}  b5 {[%clk 0:01:00]} 45. d5 {[%clk 0:00:20]}  Ra6 {[%clk 0:01:00]} 46. Rd3 {[%clk 0:00:19]}  Rd6 {[%clk 0:01:00]} 47. Kf3 {[%clk 0:00:19]}  Kg7 {[%clk 0:01:00]} 48. Ke3 {[%clk 0:00:20]}  Kf6 {[%clk 0:00:59]} 49. Kd4 {[%clk 0:00:20]}  a6 {[%clk 0:00:59]} 50. Rf3+ {[%clk 0:00:21]}  Ke7 {[%clk 0:00:58]} 51. Ke5 {[%clk 0:00:22]}  a5 {[%clk 0:00:58]} 52. Rf7+ {[%clk 0:00:22]}  Kxf7 {[%clk 0:00:57]} 53. Kxd6 {[%clk 0:00:23]}  b4 {[%clk 0:00:57]} 54. cxb4 {[%clk 0:00:23]}  axb4 {[%clk 0:00:57]} 55. Bc2 {[%clk 0:00:23]}  Ke8 {[%clk 0:00:52]} 56. Kc7 {[%clk 0:00:23]} 1-0


[Site "https://www.chess.com"]

[Event "Titled Tuesday Blitz July 4 Late 2023"]
[White "Arnold, Ken"]
[Black "Prem, Pranav"]
[WhiteFideId "2056836"]
[BlackFideId "30901057"]
[WhiteElo "2405"]
[BlackElo "2530"]
[Result "0-1"]
[Round "10"]
[TimeControl "180+2"]
[Date "2023.07.04"]
[WhiteClock "0:00:29"]
[BlackClock "0:00:03"]
[Board "67"]

1. d4 {[%clk 0:03:00]}  d5 {[%clk 0:02:59]} 2. Nf3 {[%clk 0:03:00]}  Nf6 {[%clk 0:02:58]} 3. c3 {[%clk 0:03:00]}  Bf5 {[%clk 0:02:58]} 4. Bf4 {[%clk 0:03:00]}  c6 {[%clk 0:02:57]} 5. Nbd2 {[%clk 0:03:00]}  Qb6 {[%clk 0:02:56]} 6. Qb3 {[%clk 0:02:59]}  e6 {[%clk 0:02:52]} 7. e3 {[%clk 0:02:57]}  Nbd7 {[%clk 0:02:46]} 8. Be2 {[%clk 0:02:57]}  c5 {[%clk 0:02:47]} 9. c4 {[%clk 0:02:55]}  Be7 {[%clk 0:02:36]} 10. O-O {[%clk 0:02:53]}  O-O {[%clk 0:02:36]} 11. h3 {[%clk 0:02:52]}  h6 {[%clk 0:02:27]} 12. cxd5 {[%clk 0:02:38]}  Nxd5 {[%clk 0:02:12]} 13. Bh2 {[%clk 0:02:33]}  N7f6 {[%clk 0:02:03]} 14. Rac1 {[%clk 0:02:20]}  Rac8 {[%clk 0:01:54]} 15. Nc4 {[%clk 0:01:51]}  Qxb3 {[%clk 0:01:49]} 16. axb3 {[%clk 0:01:51]}  Ne4 {[%clk 0:01:32]} 17. g4 {[%clk 0:01:35]}  Bh7 {[%clk 0:01:25]} 18. Bd3 {[%clk 0:01:35]}  Nb4 {[%clk 0:01:19]} 19. Bb1 {[%clk 0:01:34]}  b5 {[%clk 0:01:05]} 20. Nce5 {[%clk 0:01:30]}  f6 {[%clk 0:01:00]} 21. Nd7 {[%clk 0:01:27]}  Rfd8 {[%clk 0:01:00]} 22. Nxc5 {[%clk 0:01:27]}  Bxc5 {[%clk 0:00:58]} 23. dxc5 {[%clk 0:01:26]}  Nxc5 {[%clk 0:00:58]} 24. Bxh7+ {[%clk 0:01:23]}  Kxh7 {[%clk 0:00:59]} 25. Nd4 {[%clk 0:01:22]}  a6 {[%clk 0:00:51]} 26. Rxc5 {[%clk 0:01:21]}  Rxc5 {[%clk 0:00:48]} 27. Nxe6 {[%clk 0:01:21]}  Rcd5 {[%clk 0:00:46]} 28. Nxd8 {[%clk 0:01:20]}  Rxd8 {[%clk 0:00:47]} 29. Bc7 {[%clk 0:01:01]}  Rd3 {[%clk 0:00:43]} 30. Ra1 {[%clk 0:00:46]}  Rxb3 {[%clk 0:00:39]} 31. Bd6 {[%clk 0:00:45]}  Nd3 {[%clk 0:00:20]} 32. Rxa6 {[%clk 0:00:43]}  Rxb2 {[%clk 0:00:20]} 33. Bg3 {[%clk 0:00:43]}  b4 {[%clk 0:00:18]} 34. Rb6 {[%clk 0:00:42]}  b3 {[%clk 0:00:17]} 35. Kf1 {[%clk 0:00:39]}  Nc5 {[%clk 0:00:14]} 36. Bd6 {[%clk 0:00:35]}  Ne4 {[%clk 0:00:13]} 37. Bf8 {[%clk 0:00:34]}  Rxf2+ {[%clk 0:00:11]} 38. Ke1 {[%clk 0:00:34]}  b2 {[%clk 0:00:10]} 39. Rb7 {[%clk 0:00:34]}  Rc2 {[%clk 0:00:04]} 40. Bxg7 {[%clk 0:00:29]}  Rc1+ {[%clk 0:00:03]} 41. Ke2 {[%clk 0:00:29]}  b1=Q {[%clk 0:00:03]} 42. Re7 {[%clk 0:00:27]}  Re1+ {[%clk 0:00:02]} 43. Kf3 {[%clk 0:00:28]}  Ng5+ {[%clk 0:00:02]} 44. Kf4 {[%clk 0:00:29]}  Rf1+ {[%clk 0:00:02]} 45. Kg3 {[%clk 0:00:28]}  Rf3+ {[%clk 0:00:03]} 46. Kh4 {[%clk 0:00:29]}  Rxh3# {[%clk 0:00:03]} 0-1


[Site "https://www.chess.com"]

[Event "Titled Tuesday Blitz July 4 Late 2023"]
[White "marik_spb"]
[Black "Romero Arzuaga, Yudel"]
[BlackFideId "3521010"]
[WhiteElo "2503"]
[BlackElo "2387"]
[Result "0-1"]
[Round "10"]
[TimeControl "180+2"]
[Date "2023.07.04"]
[WhiteClock "0:00:00"]
[BlackClock "0:00:35"]
[Board "68"]

1. e4 {[%clk 0:03:00]}  d5 {[%clk 0:02:59]} 2. exd5 {[%clk 0:02:59]}  Qxd5 {[%clk 0:02:59]} 3. Nc3 {[%clk 0:02:59]}  Qd8 {[%clk 0:03:00]} 4. d4 {[%clk 0:02:59]}  c6 {[%clk 0:03:00]} 5. Be3 {[%clk 0:02:56]}  Bf5 {[%clk 0:03:00]} 6. Nf3 {[%clk 0:02:56]}  e6 {[%clk 0:02:59]} 7. Bd3 {[%clk 0:02:56]}  Bxd3 {[%clk 0:02:57]} 8. Qxd3 {[%clk 0:02:57]}  Nf6 {[%clk 0:02:58]} 9. Ne4 {[%clk 0:02:56]}  Nbd7 {[%clk 0:02:56]} 10. O-O {[%clk 0:02:53]}  Be7 {[%clk 0:02:55]} 11. c4 {[%clk 0:02:52]}  O-O {[%clk 0:02:50]} 12. Rfd1 {[%clk 0:02:50]}  Nxe4 {[%clk 0:02:47]} 13. Qxe4 {[%clk 0:02:51]}  Nf6 {[%clk 0:02:47]} 14. Qc2 {[%clk 0:02:52]}  Qa5 {[%clk 0:02:44]} 15. Ne5 {[%clk 0:02:41]}  Rad8 {[%clk 0:02:43]} 16. a3 {[%clk 0:02:40]}  Nd7 {[%clk 0:02:39]} 17. b4 {[%clk 0:02:33]}  Qc7 {[%clk 0:02:39]} 18. Qe4 {[%clk 0:02:16]}  Nxe5 {[%clk 0:02:35]} 19. dxe5 {[%clk 0:02:17]}  Rxd1+ {[%clk 0:02:32]} 20. Rxd1 {[%clk 0:02:17]}  Rd8 {[%clk 0:02:31]} 21. Rxd8+ {[%clk 0:01:42]}  Qxd8 {[%clk 0:02:31]} 22. g3 {[%clk 0:01:42]}  a5 {[%clk 0:02:30]} 23. b5 {[%clk 0:01:15]}  Qd7 {[%clk 0:02:08]} 24. a4 {[%clk 0:01:14]}  h6 {[%clk 0:02:00]} 25. Kg2 {[%clk 0:01:14]}  Bb4 {[%clk 0:01:56]} 26. Qg4 {[%clk 0:00:44]}  Kf8 {[%clk 0:01:49]} 27. h4 {[%clk 0:00:34]}  cxb5 {[%clk 0:01:46]} 28. cxb5 {[%clk 0:00:32]}  Qd5+ {[%clk 0:01:33]} 29. Qf3 {[%clk 0:00:33]}  Qd7 {[%clk 0:01:29]} 30. h5 {[%clk 0:00:28]}  Kg8 {[%clk 0:01:26]} 31. Qe4 {[%clk 0:00:28]}  Qc7 {[%clk 0:01:22]} 32. Qd4 {[%clk 0:00:17]}  Bc3 {[%clk 0:01:16]} 33. Qb6 {[%clk 0:00:13]}  Bxe5 {[%clk 0:01:15]} 34. Qxc7 {[%clk 0:00:10]}  Bxc7 {[%clk 0:01:15]} 35. Kf3 {[%clk 0:00:10]}  f6 {[%clk 0:01:08]} 36. Ke4 {[%clk 0:00:10]}  Kf7 {[%clk 0:01:06]} 37. Kd3 {[%clk 0:00:08]}  g6 {[%clk 0:01:06]} 38. hxg6+ {[%clk 0:00:07]}  Kxg6 {[%clk 0:01:06]} 39. Kc4 {[%clk 0:00:08]}  b6 {[%clk 0:01:01]} 40. Kd4 {[%clk 0:00:05]}  h5 {[%clk 0:00:55]} 41. Ke4 {[%clk 0:00:05]}  Bd8 {[%clk 0:00:51]} 42. Bd4 {[%clk 0:00:04]}  Bc7 {[%clk 0:00:49]} 43. Bc3 {[%clk 0:00:03]}  f5+ {[%clk 0:00:47]} 44. Kf3 {[%clk 0:00:03]}  e5 {[%clk 0:00:46]} 45. Ke3 {[%clk 0:00:02]}  Kg5 {[%clk 0:00:45]} 46. f3 {[%clk 0:00:02]}  f4+ {[%clk 0:00:41]} 47. Kf2 {[%clk 0:00:03]}  fxg3+ {[%clk 0:00:39]} 48. Kxg3 {[%clk 0:00:04]}  Kf5 {[%clk 0:00:39]} 49. Kg2 {[%clk 0:00:03]}  e4 {[%clk 0:00:39]} 50. fxe4+ {[%clk 0:00:03]}  Kxe4 {[%clk 0:00:39]} 51. Kh3 {[%clk 0:00:01]}  Kd3 {[%clk 0:00:39]} 52. Be1 {[%clk 0:00:01]}  Kc4 {[%clk 0:00:38]} 53. Kh4 {[%clk 0:00:01]}  Kb3 {[%clk 0:00:38]} 54. Kxh5 {[%clk 0:00:02]}  Kxa4 {[%clk 0:00:38]} 55. Kg4 {[%clk 0:00:03]}  Kxb5 {[%clk 0:00:38]} 56. Kf3 {[%clk 0:00:04]}  Kc4 {[%clk 0:00:39]} 57. Ke2 {[%clk 0:00:05]}  Kb3 {[%clk 0:00:39]} 58. Kd1 {[%clk 0:00:06]}  Bf4 {[%clk 0:00:36]} 59. Bh4 {[%clk 0:00:04]}  b5 {[%clk 0:00:36]} 60. Be7 {[%clk 0:00:00]}  b4 {[%clk 0:00:35]} 0-1


[Site "https://www.chess.com"]

[Event "Titled Tuesday Blitz July 4 Late 2023"]
[White "Deng, Henry"]
[Black "Ardila, Oscar Humberto"]
[WhiteFideId "30965454"]
[BlackFideId "4404742"]
[WhiteElo "2486"]
[BlackElo "2346"]
[Result "1-0"]
[Round "10"]
[TimeControl "180+2"]
[Date "2023.07.04"]
[WhiteClock "0:00:20"]
[BlackClock "0:00:08"]
[Board "70"]

1. e4 {[%clk 0:03:00]}  e5 {[%clk 0:02:59]} 2. Nf3 {[%clk 0:02:59]}  Nf6 {[%clk 0:02:55]} 3. Nxe5 {[%clk 0:02:59]}  d6 {[%clk 0:02:55]} 4. Nf3 {[%clk 0:02:59]}  Nxe4 {[%clk 0:02:55]} 5. Nc3 {[%clk 0:03:00]}  Nxc3 {[%clk 0:02:55]} 6. dxc3 {[%clk 0:03:01]}  Be7 {[%clk 0:02:56]} 7. Be3 {[%clk 0:03:01]}  O-O {[%clk 0:02:56]} 8. Qd2 {[%clk 0:03:02]}  Nd7 {[%clk 0:02:56]} 9. O-O-O {[%clk 0:03:03]}  Nf6 {[%clk 0:02:57]} 10. h4 {[%clk 0:03:00]}  c5 {[%clk 0:02:53]} 11. h5 {[%clk 0:02:43]}  Qa5 {[%clk 0:02:51]} 12. Kb1 {[%clk 0:02:40]}  Be6 {[%clk 0:02:51]} 13. a3 {[%clk 0:02:34]}  Ne4 {[%clk 0:02:25]} 14. Qe1 {[%clk 0:02:07]}  Bf6 {[%clk 0:02:22]} 15. Bc1 {[%clk 0:01:54]}  Nxc3+ {[%clk 0:02:18]} 16. bxc3 {[%clk 0:01:30]}  Bxc3 {[%clk 0:02:15]} 17. Qe2 {[%clk 0:01:26]}  b5 {[%clk 0:01:32]} 18. h6 {[%clk 0:00:54]}  b4 {[%clk 0:01:26]} 19. Qa6 {[%clk 0:00:49]}  Qxa6 {[%clk 0:01:19]} 20. Bxa6 {[%clk 0:00:49]}  bxa3 {[%clk 0:01:20]} 21. Bxa3 {[%clk 0:00:49]}  Rfb8+ {[%clk 0:01:15]} 22. Kc1 {[%clk 0:00:49]}  Rb6 {[%clk 0:01:15]} 23. Rd3 {[%clk 0:00:36]}  Bf6 {[%clk 0:01:07]} 24. hxg7 {[%clk 0:00:26]}  Rxa6 {[%clk 0:01:04]} 25. Bb2 {[%clk 0:00:24]}  Bxb2+ {[%clk 0:01:02]} 26. Kxb2 {[%clk 0:00:24]}  Rb8+ {[%clk 0:01:02]} 27. Kc3 {[%clk 0:00:23]}  Ra3+ {[%clk 0:00:51]} 28. Kd2 {[%clk 0:00:23]}  Rxd3+ {[%clk 0:00:51]} 29. Kxd3 {[%clk 0:00:23]}  Kxg7 {[%clk 0:00:52]} 30. Ra1 {[%clk 0:00:22]}  Ra8 {[%clk 0:00:36]} 31. Ra6 {[%clk 0:00:21]}  d5 {[%clk 0:00:34]} 32. Ne5 {[%clk 0:00:19]}  Bf5+ {[%clk 0:00:30]} 33. Kc3 {[%clk 0:00:19]}  d4+ {[%clk 0:00:29]} 34. Kd2 {[%clk 0:00:19]}  Re8 {[%clk 0:00:24]} 35. Nc4 {[%clk 0:00:19]}  Bg4 {[%clk 0:00:20]} 36. f3 {[%clk 0:00:18]}  Be6 {[%clk 0:00:16]} 37. Nd6 {[%clk 0:00:19]}  Rd8 {[%clk 0:00:15]} 38. Nb7 {[%clk 0:00:18]}  Rc8 {[%clk 0:00:10]} 39. Nd6 {[%clk 0:00:17]}  Rc7 {[%clk 0:00:08]} 40. Ne8+ {[%clk 0:00:17]}  Kg6 {[%clk 0:00:07]} 41. Nxc7 {[%clk 0:00:18]}  Kf5 {[%clk 0:00:07]} 42. Nxe6 {[%clk 0:00:18]}  fxe6 {[%clk 0:00:08]} 43. Rxa7 {[%clk 0:00:18]}  e5 {[%clk 0:00:08]} 44. Rxh7 {[%clk 0:00:18]}  c4 {[%clk 0:00:09]} 45. c3 {[%clk 0:00:19]}  d3 {[%clk 0:00:09]} 46. Rc7 {[%clk 0:00:19]}  Kf4 {[%clk 0:00:09]} 47. Rxc4+ {[%clk 0:00:19]}  Kg3 {[%clk 0:00:09]} 48. Rg4+ {[%clk 0:00:20]}  Kf2 {[%clk 0:00:09]} 49. Kxd3 {[%clk 0:00:20]}  e4+ {[%clk 0:00:08]} 50. Kxe4 {[%clk 0:00:20]} 1-0


[Site "https://www.chess.com"]

[Event "Titled Tuesday Blitz July 4 Late 2023"]
[White "Ganiev, Roman"]
[Black "Bochnicka, Vladimir"]
[WhiteFideId "4131452"]
[BlackFideId "14943450"]
[WhiteElo "2601"]
[BlackElo "2391"]
[Result "1-0"]
[Round "10"]
[TimeControl "180+2"]
[Date "2023.07.04"]
[WhiteClock "0:01:28"]
[BlackClock "0:00:43"]
[Board "72"]

1. e4 {[%clk 0:03:00]}  c5 {[%clk 0:02:57]} 2. Nf3 {[%clk 0:03:00]}  Nc6 {[%clk 0:02:34]} 3. Bb5 {[%clk 0:02:51]}  e6 {[%clk 0:02:34]} 4. O-O {[%clk 0:02:46]}  Nge7 {[%clk 0:02:34]} 5. d4 {[%clk 0:02:46]}  cxd4 {[%clk 0:02:33]} 6. Nxd4 {[%clk 0:02:47]}  Qb6 {[%clk 0:02:33]} 7. Nxc6 {[%clk 0:02:48]}  dxc6 {[%clk 0:02:29]} 8. Bd3 {[%clk 0:02:45]}  Ng6 {[%clk 0:02:29]} 9. Nd2 {[%clk 0:02:45]}  e5 {[%clk 0:02:29]} 10. Nc4 {[%clk 0:02:45]}  Qc7 {[%clk 0:02:29]} 11. a4 {[%clk 0:02:46]}  Be6 {[%clk 0:02:27]} 12. Be3 {[%clk 0:02:44]}  Be7 {[%clk 0:02:27]} 13. Qe2 {[%clk 0:02:43]}  O-O {[%clk 0:02:28]} 14. Rad1 {[%clk 0:02:43]}  b5 {[%clk 0:02:23]} 15. axb5 {[%clk 0:02:40]}  cxb5 {[%clk 0:02:24]} 16. Nd2 {[%clk 0:02:41]}  a6 {[%clk 0:02:23]} 17. Nf3 {[%clk 0:02:39]}  h6 {[%clk 0:02:16]} 18. Ra1 {[%clk 0:02:19]}  Bc5 {[%clk 0:02:16]} 19. Bxc5 {[%clk 0:02:04]}  Qxc5 {[%clk 0:02:16]} 20. Qe3 {[%clk 0:02:05]}  Qe7 {[%clk 0:01:55]} 21. Ra5 {[%clk 0:02:01]}  Nf4 {[%clk 0:01:48]} 22. Rfa1 {[%clk 0:01:55]}  Rfd8 {[%clk 0:01:32]} 23. Bf1 {[%clk 0:01:52]}  Rd6 {[%clk 0:01:31]} 24. Nxe5 {[%clk 0:01:52]}  Qg5 {[%clk 0:01:24]} 25. Nd3 {[%clk 0:01:45]}  Nxd3 {[%clk 0:01:02]} 26. Bxd3 {[%clk 0:01:46]}  Qe5 {[%clk 0:00:56]} 27. b3 {[%clk 0:01:37]}  Rad8 {[%clk 0:00:53]} 28. f4 {[%clk 0:01:36]}  Qc3 {[%clk 0:00:51]} 29. e5 {[%clk 0:01:30]}  Rd4 {[%clk 0:00:47]} 30. Bh7+ {[%clk 0:01:27]}  Kxh7 {[%clk 0:00:44]} 31. Qxc3 {[%clk 0:01:28]}  Rd1+ {[%clk 0:00:44]} 32. Rxd1 {[%clk 0:01:27]}  Rxd1+ {[%clk 0:00:43]} 33. Kf2 {[%clk 0:01:28]} 1-0


[Site "https://www.chess.com"]